Workbook

Sheet ProgramData
A1: County | B1: Route | C1: From | D1: To | E1: Length | F1: Rut | G1: IRI | H1: PCI
A2: Uinta | B2: ML8696B | C2: 2.08 | D2: 2.48 | E2: =ABS(C2-D2) -> 0.4 | F2: 0.105 | G2: 142 | H2: 83
A3: Uinta | B3: ML8696B | C3: 2.48 | D3: 3.009 | E3: 0.529 | F3: 0.11 | G3: 145.5 | H3: 83
A4: Uinta | B4: ML8696B | C4: 3.009 | D4: 4.97 | E4: 1.961 | F4: 0.095 | G4: 160.5 | H4: 82
A5: Uinta | B5: ML8696B | C5: 4.97 | D5: 7.69 | E5: 2.72 | F5: 0.065 | G5: 159 | H5: 77
A6: Fremont | B6: ML5813B | C6: 0 | D6: 0.866 | E6: 0.866 | F6: 0.115 | G6: 140 | H6: 72
A7: Fremont | B7: ML5814B | C7: 1.66 | D7: 4.77 | E7: 3.11 | F7: 0.145 | G7: 68 | H7: 93
A8: Fremont | B8: ML5814B | C8: 4.77 | D8: 6.23 | E8: 1.46 | F8: 0.125 | G8: 61.5 | H8: 96
A9: Fremont | B9: ML5814B | C9: 6.23 | D9: 8.34 | E9: 2.11 | F9: 0.1 | G9: 195.5 | H9: 68
A10: Sweetwater | B10: ML8515B | C10: 0 | D10: 0.24 | E10: 0.24 | F10: 0.22 | G10: 382 | H10: 79
A11: Park | B11: ML7776B | C11: 0 | D11: 1.94 | E11: 1.94 | F11: 0.175 | G11: 92 | H11: 82
A12: Park | B12: ML7776B | C12: 1.94 | D12: 2.85 | E12: 0.91 | F12: 0.18 | G12: 110 | H12: 81
A13: Park | B13: ML7776B | C13: 2.85 | D13: 3.47 | E13: 0.62 | F13: 0.22 | G13: 73 | H13: 84
A14: Teton | B14: ML2003B | C14: 0 | D14: 3.59 | E14: 3.59 | F14: 0.05 | G14: 68 | H14: 85
A15: Fremont | B15: ML9537B | C15: 0 | D15: 2.91 | E15: 2.91 | F15: 0.135 | G15: 268 | H15: 63
A16: Sweetwater | B16: ML1904B | C16: 0 | D16: 1.37 | E16: 1.37 | F16: 0.075 | G16: 96 | H16: 81
A17: Sweetwater | B17: ML9549B | C17: 0 | D17: 0.6 | E17: 0.6 | F17: 0.06 | G17: 158 | H17: 83
A18: Sweetwater | B18: ML1919B | C18: 0 | D18: 0.56 | E18: 0.56 | F18: 0.105 | G18: 295 | H18: 82
A19: Sweetwater | B19: ML9544B | C19: 0 | D19: 0.48 | E19: 0.48 | F19: 0.1 | G19: 181 | H19: 86
A20: Sweetwater | B20: ML1923B | C20: 0 | D20: 0.459 | E20: 0.459 | F20: 0.1 | G20: 105.5 | H20: 88
A21: Fremont | B21: ML9584B | C21: 0 | D21: 0.39 | E21: 0.39 | F21: 0.085 | G21: 256.5 | H21: 78
A22: Lincoln | B22: ML9603B | C22: 0 | D22: 0.28 | E22: 0.28 | F22: 0.255 | G22: 273 | H22: 94
A23: BigHorn | B23: ML5304B | C23: 0 | D23: 0.259 | E23: 0.259 | F23: 0.055 | G23: 101 | H23: 86
A24: Fremont | B24: ML9585B | C24: 0 | D24: 0.209 | E24: 0.209 | F24: 0.105 | G24: 253.5 | H24: 83
A25: Fremont | B25: ML9556B | C25: 0 | D25: 0.121 | E25: 0.121 | F25: 0.045 | G25: 371 | H25: 82
A26: Sweetwater | B26: ML9554B | C26: 0 | D26: 0.07 | E26: 0.07 | F26: 0.065 | G26: 272.5 | H26: 93
A27: Fremont | B27: ML5758B | C27: 0 | D27: 0.06 | E27: 0.06 | F27: 0.035 | G27: 255 | H27: 94
A28: Sweetwater | B28: ML9555B | C28: 0 | D28: 0.03 | E28: 0.03 | F28: 0.205 | G28: 269.5 | H28: 88
A29: Sweetwater | B29: ML9553B | C29: 0 | D29: 0.03 | E29: 0.03 | F29: 0.115 | G29: 467 | H29: 79
A30: Fremont | B30: ML5758B | C30: 0.06 | D30: 0.139 | E30: 0.079 | F30: 0.025 | G30: 198.5 | H30: 91
A31: Fremont | B31: ML9556B | C31: 0.121 | D31: 0.23 | E31: 0.109 | F31: 0.03 | G31: 290 | H31: 84
A32: Sweetwater | B32: ML1904B | C32: 1.37 | D32: 4.638 | E32: 3.268 | F32: 0.065 | G32: 56 | H32: 83
A33: Teton | B33: ML19240B | C33: 97.327 | D33: 97.757 | E33: 0.43 | F33: 0.06 | G33: 229.5 | H33: 91
A34: Teton | B34: ML19240B | C34: 97.757 | D34: 98.454 | E34: 0.697 | F34: 0.065 | G34: 162 | H34: 92
A35: Fremont | B35: ML5738B | C35: 100 | D35: 100.34 | E35: 0.34 | F35: 0.215 | G35: 180.5 | H35: 82
A36: Sublette | B36: ML25723B | C36: 100.254 | D36: 100.547 | E36: 0.293 | F36: 0.1 | G36: 206 | H36: 88
A37: BigHorn | B37: ML10442B | C37: 100.281 | D37: 101.002 | E37: 0.721 | F37: 0.19 | G37: 285.5 | H37: 67
A38: Park | B38: ML7776B | C38: 3.47 | D38: 4.13 | E38: 0.66 | F38: 0.175 | G38: 85 | H38: 81
A39: Park | B39: ML7776B | C39: 4.13 | D39: 5.151 | E39: 1.021 | F39: 0.125 | G39: 161.5 | H39: 85
A40: Park | B40: ML7777B | C40: 0 | D40: 0.13 | E40: 0.13 | F40: 0.32 | G40: 275.5 | H40: 86
A41: Park | B41: ML7783B | C41: 0 | D41: 0.217 | E41: 0.217 | F41: 0.255 | G41: 148.5 | H41: 97
A42: Park | B42: ML7785B | C42: 0 | D42: 1.521 | E42: 1.521 | F42: 0.065 | G42: 196.5 | H42: 81
A43: Park | B43: ML7790B | C43: 0 | D43: 1.88 | E43: 1.88 | F43: 0.205 | G43: 199.5 | H43: 84
A44: Park | B44: ML7790B | C44: 1.88 | D44: 2.45 | E44: 0.57 | F44: 0.17 | G44: 162.5 | H44: 93
A45: Park | B45: ML7790B | C45: 2.45 | D45: 3.63 | E45: 1.18 | F45: 0.16 | G45: 209 | H45: 87
A46: Park | B46: ML7790B | C46: 3.63 | D46: 4.63 | E46: 1 | F46: 0.195 | G46: 175 | H46: 94
A47: Park | B47: ML7790B | C47: 4.63 | D47: 7.28 | E47: 2.65 | F47: 0.155 | G47: 181 | H47: 87
A48: Park | B48: ML7790B | C48: 7.28 | D48: 7.539 | E48: 0.259 | F48: 0.13 | G48: 187.5 | H48: 91
A49: Park | B49: ML7790B | C49: 7.539 | D49: 8.1 | E49: 0.561 | F49: 0.135 | G49: 160.5 | H49: 91
A50: Park | B50: ML7790B | C50: 8.1 | D50: 8.23 | E50: 0.13 | F50: 0.11 | G50: 279.5 | H50: 86
A51: Park | B51: ML7791B | C51: 0 | D51: 0.9 | E51: 0.9 | F51: 0.135 | G51: 229 | H51: 88
A52: Park | B52: ML7794B | C52: 0 | D52: 0.129 | E52: 0.129 | F52: 0.115 | G52: 434.5 | H52: 84
A53: Park | B53: ML7796B | C53: 0 | D53: 0.6 | E53: 0.6 | F53: 0.185 | G53: 216 | H53: 94
A54: Park | B54: ML7798B | C54: 0.76 | D54: 2.24 | E54: 1.48 | F54: 0.075 | G54: 187 | H54: 80
A55: Park | B55: ML7800B | C55: 0 | D55: 0.95 | E55: 0.95 | F55: 0.055 | G55: 199 | H55: 93
A56: Park | B56: ML7802B | C56: 0 | D56: 0.9 | E56: 0.9 | F56: 0.065 | G56: 227 | H56: 76
A57: Park | B57: ML7805B | C57: 0.92 | D57: 1.21 | E57: 0.29 | F57: 0.08 | G57: 207.5 | H57: 85
A58: Park | B58: ML7805B | C58: 1.21 | D58: 1.5 | E58: 0.29 | F58: 0.085 | G58: 141.5 | H58: 93
A59: Park | B59: ML7806B | C59: 0 | D59: 0.11 | E59: 0.11 | F59: 0.115 | G59: 323 | H59: 87
A60: Park | B60: ML7806B | C60: 0.11 | D60: 1.72 | E60: 1.61 | F60: 0.15 | G60: 208 | H60: 80
A61: Park | B61: ML7807B | C61: 0 | D61: 0.5 | E61: 0.5 | F61: 0.16 | G61: 210 | H61: 88
A62: Park | B62: ML7807B | C62: 0.5 | D62: 0.76 | E62: 0.26 | F62: 0.125 | G62: 208.5 | H62: 91
A63: Park | B63: ML7807B | C63: 0.76 | D63: 1.89 | E63: 1.13 | F63: 0.135 | G63: 206 | H63: 83
A64: Park | B64: ML7808B | C64: 0 | D64: 2.94 | E64: 2.94 | F64: 0.14 | G64: 198.5 | H64: 78
A65: Park | B65: ML7809B | C65: 0 | D65: 2.64 | E65: 2.64 | F65: 0.12 | G65: 193.5 | H65: 81
A66: Park | B66: ML7810B | C66: 0 | D66: 1.28 | E66: =ABS(C66-D66) -> 1.28 | F66: 0.135 | G66: 182.5 | H66: 79
A67: Park | B67: ML7811B | C67: 0 | D67: 2.88 | E67: 2.88 | F67: 0.14 | G67: 207.5 | H67: 79
A68: Park | B68: ML7811B | C68: 2.88 | D68: 10.45 | E68: 7.57 | F68: 0.22 | G68: 205 | H68: 73
A69: Park | B69: ML7811B | C69: 10.45 | D69: 14.64 | E69: 4.19 | F69: 0.105 | G69: 249 | H69: 80
A70: Park | B70: ML7812B | C70: 0 | D70: 0.58 | E70: 0.58 | F70: 0.14 | G70: 172 | H70: 82
A71: Park | B71: ML7813B | C71: 0 | D71: 1.53 | E71: 1.53 | F71: 0.205 | G71: 194 | H71: 82
A72: Washakie | B72: ML8878B | C72: 0 | D72: 0.49 | E72: 0.49 | F72: 0.075 | G72: 141.5 | H72: 87
A73: Washakie | B73: ML8878B | C73: 0.49 | D73: 1 | E73: 0.51 | F73: 0.08 | G73: 163 | H73: 83
A74: Park | B74: ML7813B | C74: 1.53 | D74: 1.68 | E74: 0.15 | F74: 0.095 | G74: 189.5 | H74: 92
A75: Park | B75: ML7816B | C75: 0 | D75: 0.261 | E75: 0.261 | F75: 0.285 | G75: 291.5 | H75: 88
A76: Park | B76: ML7816B | C76: 0.261 | D76: 0.96 | E76: 0.699 | F76: 0.28 | G76: 245.5 | H76: 88
A77: Park | B77: ML7818B | C77: 0 | D77: 2.72 | E77: 2.72 | F77: 0.22 | G77: 119 | H77: 79
A78: Park | B78: ML7818B | C78: 2.72 | D78: 9.33 | E78: 6.61 | F78: 0.07 | G78: 134.5 | H78: 74
A79: Park | B79: ML7818B | C79: 9.33 | D79: 10.1 | E79: 0.77 | F79: 0.11 | G79: 121.5 | H79: 81
A80: Park | B80: ML7818B | C80: 10.1 | D80: 16.96 | E80: 6.86 | F80: 0.155 | G80: 161 | H80: 71
A81: Park | B81: ML7818B | C81: 16.96 | D81: 17.82 | E81: 0.86 | F81: 0.2 | G81: 126.5 | H81: 77
A82: Park | B82: ML7819B | C82: 0 | D82: 0.06 | E82: 0.06 | F82: 0.13 | G82: 621.5 | H82: 88
A83: Park | B83: ML7825B | C83: 0 | D83: 4.88 | E83: 4.88 | F83: 0.115 | G83: 195.5 | H83: 79
A84: Park | B84: ML7826B | C84: 0 | D84: 0.27 | E84: 0.27 | F84: 0.205 | G84: 219.5 | H84: 79
A85: Park | B85: ML7827B | C85: 0 | D85: 0.21 | E85: 0.21 | F85: 0.095 | G85: 213.5 | H85: 85
A86: Park | B86: ML7828B | C86: 0 | D86: 0.06 | E86: 0.06 | F86: 0.09 | G86: 285.5 | H86: 87
A87: Park | B87: ML7838B | C87: 0 | D87: 0.33 | E87: 0.33 | F87: 0.13 | G87: 210.5 | H87: 92
A88: Sweetwater | B88: ML8390B | C88: 0 | D88: 1.74 | E88: 1.74 | F88: 0.08 | G88: 80.5 | H88: 85
A89: Sweetwater | B89: ML8390B | C89: 1.74 | D89: 1.921 | E89: 0.181 | F89: 0.15 | G89: 105.5 | H89: 82
A90: Sweetwater | B90: ML8390B | C90: 1.921 | D90: 2.56 | E90: 0.639 | F90: 0.11 | G90: 50 | H90: 92
A91: Park | B91: ML7838B | C91: 0.33 | D91: 0.57 | E91: 0.24 | F91: 0.225 | G91: 189.5 | H91: 97
A92: Park | B92: ML7840B | C92: 0 | D92: 1.47 | E92: 1.47 | F92: 0.12 | G92: 213 | H92: 90
A93: Park | B93: ML7840B | C93: 1.47 | D93: 2.5 | E93: 1.03 | F93: 0.145 | G93: 178.5 | H93: 88
A94: Park | B94: ML7840B | C94: 2.5 | D94: 3.476 | E94: 0.976 | F94: 0.135 | G94: 142.5 | H94: 95
A95: Park | B95: ML7841B | C95: 0 | D95: 0.41 | E95: 0.41 | F95: 0.145 | G95: 298.5 | H95: 91
A96: Park | B96: ML7847B | C96: 0 | D96: 1 | E96: 1 | F96: 0.13 | G96: 155 | H96: 90
A97: Park | B97: ML7849B | C97: 0 | D97: 0.931 | E97: 0.931 | F97: 0.135 | G97: 120.5 | H97: 86
A98: Lincoln | B98: ML7503B | C98: 0 | D98: 0.44 | E98: 0.44 | F98: 0.08 | G98: 246 | H98: 94
A99: Lincoln | B99: ML7503B | C99: 0.44 | D99: 0.53 | E99: 0.09 | F99: 0.075 | G99: 224.5 | H99: 100
A100: Lincoln | B100: ML7503B | C100: 0.53 | D100: 1.09 | E100: 0.56 | F100: 0.09 | G100: 340.5 | H100: 80
A101: Lincoln | B101: ML7534B | C101: 0 | D101: 0.14 | E101: 0.14 | F101: 0.05 | G101: 251.5 | H101: 95
A102: Lincoln | B102: ML7534B | C102: 0.14 | D102: 0.43 | E102: 0.29 | F102: 0.11 | G102: 245 | H102: 91
A103: Park | B103: ML7851B | C103: 0 | D103: 1.4 | E103: 1.4 | F103: 0.135 | G103: 170 | H103: 89
A104: Park | B104: ML7851B | C104: 1.4 | D104: 2.7 | E104: 1.3 | F104: 0.115 | G104: 174.5 | H104: 86
A105: Sweetwater | B105: ML9567B | C105: 0 | D105: 0.07 | E105: 0.07 | F105: 0.11 | G105: 293 | H105: 90
A106: Park | B106: ML7851B | C106: 2.7 | D106: 4.11 | E106: 1.41 | F106: 0.12 | G106: 187.5 | H106: 89
A107: Park | B107: ML7851B | C107: 4.11 | D107: 4.16 | E107: 0.05 | F107: 0.07 | G107: 223.5 | H107: 95
A108: Park | B108: ML7852B | C108: 0 | D108: 0.68 | E108: 0.68 | F108: 0.14 | G108: 181.5 | H108: 86
A109: Park | B109: ML7852B | C109: 0.68 | D109: 1.19 | E109: 0.51 | F109: 0.13 | G109: 179 | H109: 91
A110: Park | B110: ML7852B | C110: 1.19 | D110: 1.41 | E110: 0.22 | F110: 0.25 | G110: 213 | H110: 88
A111: Park | B111: ML7852B | C111: 1.41 | D111: 2.16 | E111: 0.75 | F111: 0.21 | G111: 204.5 | H111: 88
A112: Park | B112: ML7852B | C112: 2.16 | D112: 3.55 | E112: 1.39 | F112: 0.11 | G112: 170.5 | H112: 86
A113: Park | B113: ML7852B | C113: 3.55 | D113: 3.901 | E113: 0.351 | F113: 0.08 | G113: 163 | H113: 86
A114: Park | B114: ML7852B | C114: 3.901 | D114: 4.46 | E114: 0.559 | F114: 0.135 | G114: 165 | H114: 88
A115: Park | B115: ML7852B | C115: 4.46 | D115: 4.88 | E115: 0.42 | F115: 0.14 | G115: 188.5 | H115: 93
A116: Park | B116: ML7852B | C116: 4.88 | D116: 9.95 | E116: 5.07 | F116: 0.115 | G116: 188.5 | H116: 74
A117: Park | B117: ML7852B | C117: 9.95 | D117: 10.95 | E117: 1 | F117: 0.11 | G117: 204 | H117: 74
A118: Park | B118: ML7852B | C118: 10.95 | D118: 18.67 | E118: 7.72 | F118: 0.125 | G118: 191.5 | H118: 75
A119: Park | B119: ML7852B | C119: 18.67 | D119: 20.41 | E119: 1.74 | F119: 0.215 | G119: 209.5 | H119: 78
A120: Park | B120: ML7852B | C120: 20.41 | D120: 22.09 | E120: 1.68 | F120: 0.15 | G120: 204.5 | H120: 81
A121: Park | B121: ML7852B | C121: 22.09 | D121: 23.64 | E121: 1.55 | F121: 0.09 | G121: 183.5 | H121: 86
A122: Park | B122: ML7853B | C122: 1.71 | D122: 2.44 | E122: 0.73 | F122: 0.085 | G122: 170.5 | H122: 80
A123: Park | B123: ML7853B | C123: 2.44 | D123: 2.56 | E123: 0.12 | F123: 0.165 | G123: 270.5 | H123: 67
A124: Park | B124: ML7854B | C124: 0 | D124: 0.37 | E124: 0.37 | F124: 0.18 | G124: 187.5 | H124: 91
A125: Park | B125: ML7860B | C125: 0 | D125: 2.01 | E125: 2.01 | F125: 0.12 | G125: 169.5 | H125: 90
A126: Park | B126: ML7866B | C126: 0 | D126: 2.06 | E126: 2.06 | F126: 0.085 | G126: 90.5 | H126: 66
A127: Park | B127: ML7866B | C127: 2.06 | D127: 3.46 | E127: 1.4 | F127: 0.06 | G127: 78.5 | H127: 78
A128: Park | B128: ML7866B | C128: 3.46 | D128: 4.06 | E128: 0.6 | F128: 0.11 | G128: 84.5 | H128: 86
A129: Park | B129: ML7866B | C129: 4.06 | D129: 4.57 | E129: 0.51 | F129: 0.14 | G129: 88.5 | H129: 85
A130: Park | B130: ML7866B | C130: 4.57 | D130: 5.25 | E130: =ABS(C130-D130) -> 0.68 | F130: 0.145 | G130: 89.5 | H130: 82
A131: Park | B131: ML7866B | C131: 5.25 | D131: 8.1 | E131: 2.85 | F131: 0.13 | G131: 94.5 | H131: 80
A132: Park | B132: ML7867B | C132: 0 | D132: 0.28 | E132: 0.28 | F132: 0.1 | G132: 203.5 | H132: 98
A133: Park | B133: ML7867B | C133: 0.28 | D133: 0.58 | E133: 0.3 | F133: 0.14 | G133: 155.5 | H133: 89
A134: Park | B134: ML7867B | C134: 0.58 | D134: 1.089 | E134: 0.509 | F134: 0.25 | G134: 156 | H134: 92
A135: Park | B135: ML7867B | C135: 1.089 | D135: 1.8 | E135: 0.711 | F135: 0.34 | G135: 117 | H135: 89
A136: Park | B136: ML7867B | C136: 1.8 | D136: 2.09 | E136: 0.29 | F136: 0.3 | G136: 182.5 | H136: 91
A137: Park | B137: ML7867B | C137: 2.09 | D137: 2.86 | E137: 0.77 | F137: 0.295 | G137: 196 | H137: 87
A138: Park | B138: ML7867B | C138: 2.86 | D138: 3.149 | E138: 0.289 | F138: 0.245 | G138: 169 | H138: 89
A139: Park | B139: ML7867B | C139: 3.149 | D139: 3.79 | E139: 0.641 | F139: 0.27 | G139: 168 | H139: 82
A140: Park | B140: ML7867B | C140: 3.79 | D140: 4.26 | E140: 0.47 | F140: 0.225 | G140: 154.5 | H140: 88
A141: Park | B141: ML7867B | C141: 4.26 | D141: 4.55 | E141: 0.29 | F141: 0.485 | G141: 198.5 | H141: 99
A142: Park | B142: ML7867B | C142: 4.55 | D142: 6.31 | E142: 1.76 | F142: 0.155 | G142: 193 | H142: 87
A143: Park | B143: ML7867B | C143: 6.31 | D143: 7 | E143: 0.69 | F143: 0.05 | G143: 214.5 | H143: 83
A144: Park | B144: ML7867B | C144: 7 | D144: 8.31 | E144: 1.31 | F144: 0.07 | G144: 180.5 | H144: 81
A145: Park | B145: ML7867B | C145: 8.31 | D145: 8.86 | E145: 0.55 | F145: 0.1 | G145: 127 | H145: 93
A146: Park | B146: ML7867B | C146: 8.86 | D146: 8.89 | E146: 0.03 | F146: 0.095 | G146: 311 | H146: 95
A147: Park | B147: ML7869B | C147: 2.75 | D147: 2.81 | E147: 0.06 | F147: 0.065 | G147: 361.5 | H147: 94
A148: Park | B148: ML7877B | C148: 0.08 | D148: 0.134 | E148: 0.054 | F148: 0.22 | G148: 215.5 | H148: 98
A149: Park | B149: ML7878B | C149: 0 | D149: 0.19 | E149: 0.19 | F149: 0.12 | G149: 176 | H149: 94
A150: Park | B150: ML7879B | C150: 0 | D150: 0.15 | E150: 0.15 | F150: 0.12 | G150: 216 | H150: 95
A151: Park | B151: ML7880B | C151: 0 | D151: 0.024 | E151: 0.024 | F151: 0.06 | G151: 445.5 | H151: 100
A152: Park | B152: ML7882B | C152: 0 | D152: 0.91 | E152: 0.91 | F152: 0.085 | G152: 177 | H152: 86
A153: Park | B153: ML7882B | C153: 0.91 | D153: 1.05 | E153: 0.14 | F153: 0.09 | G153: 174 | H153: 83
A154: Park | B154: ML7882B | C154: 1.05 | D154: 1.28 | E154: 0.23 | F154: 0.12 | G154: 234 | H154: 84
A155: Park | B155: ML7882B | C155: 1.28 | D155: 1.7 | E155: 0.42 | F155: 0.095 | G155: 168 | H155: 92
A156: Park | B156: ML7886B | C156: 0 | D156: 0.19 | E156: 0.19 | F156: 0.105 | G156: 141 | H156: 90
A157: Lincoln | B157: ML7559B | C157: 0 | D157: 0.26 | E157: 0.26 | F157: 0.11 | G157: 182.5 | H157: 94
A158: Lincoln | B158: ML7559B | C158: 0.259 | D158: 0.56 | E158: 0.301 | F158: 0.1 | G158: 77.5 | H158: 99
A159: Lincoln | B159: ML7559B | C159: 0.56 | D159: 2.12 | E159: 1.56 | F159: 0.085 | G159: 72.5 | H159: 83
A160: Lincoln | B160: ML7559B | C160: 2.12 | D160: 3.2 | E160: 1.08 | F160: 0.08 | G160: 71 | H160: 99
A161: Park | B161: ML7890B | C161: 0 | D161: 0.5 | E161: 0.5 | F161: 0.13 | G161: 165.5 | H161: 83
A162: Park | B162: ML7892B | C162: 0 | D162: 0.17 | E162: 0.17 | F162: 0.105 | G162: 157 | H162: 88
A163: Lincoln | B163: ML7487B | C163: 0 | D163: 0.08 | E163: 0.08 | F163: 0.1 | G163: 441.5 | H163: 90
A164: Lincoln | B164: ML7487B | C164: 0.08 | D164: 0.21 | E164: 0.13 | F164: 0.09 | G164: 228 | H164: 99
A165: Lincoln | B165: ML7487B | C165: 0.21 | D165: 0.54 | E165: 0.33 | F165: 0.085 | G165: 272.5 | H165: 94
A166: Lincoln | B166: ML7487B | C166: 0.54 | D166: 0.82 | E166: 0.28 | F166: 0.085 | G166: 265.5 | H166: 92
A167: Lincoln | B167: ML7487B | C167: 0.82 | D167: 1.07 | E167: 0.25 | F167: 0.075 | G167: 321 | H167: 90
A168: Park | B168: ML7892B | C168: 0.17 | D168: 0.31 | E168: 0.14 | F168: 0.085 | G168: 343.5 | H168: 90
A169: Park | B169: ML7892B | C169: 0.31 | D169: 0.96 | E169: 0.65 | F169: 0.085 | G169: 171 | H169: 85
A170: Park | B170: ML7892B | C170: 0.96 | D170: 1.47 | E170: 0.51 | F170: 0.095 | G170: 142.5 | H170: 93
A171: Park | B171: ML7892B | C171: 1.47 | D171: 1.97 | E171: 0.5 | F171: 0.07 | G171: 162.5 | H171: 82
A172: Lincoln | B172: ML7471B | C172: 0 | D172: 0.92 | E172: 0.92 | F172: 0.1 | G172: 104 | H172: 91
A173: Lincoln | B173: ML7471B | C173: 0.92 | D173: 2.03 | E173: 1.11 | F173: 0.065 | G173: 106 | H173: 97
A174: Lincoln | B174: ML7572B | C174: 0 | D174: 0.019 | E174: 0.019 | F174: 0.21 | G174: 1056.5 | H174: 83
A175: Park | B175: ML7893B | C175: 1.01 | D175: 1.5 | E175: 0.49 | F175: 0.12 | G175: 147 | H175: 93
A176: Park | B176: ML7894B | C176: 0 | D176: 0.521 | E176: 0.521 | F176: 0.12 | G176: 138.5 | H176: 92
A177: Park | B177: ML7897B | C177: 1.47 | D177: 1.9 | E177: 0.43 | F177: 0.15 | G177: 228 | H177: 82
A178: Park | B178: ML7897B | C178: 1.9 | D178: 2.41 | E178: 0.51 | F178: 0.135 | G178: 158.5 | H178: 87
A179: Park | B179: ML7897B | C179: 2.41 | D179: 2.91 | E179: 0.5 | F179: 0.12 | G179: 164 | H179: 85
A180: Park | B180: ML7897B | C180: 2.91 | D180: 3.92 | E180: 1.01 | F180: 0.09 | G180: 186 | H180: 80
A181: Park | B181: ML7898B | C181: 0 | D181: 0.62 | E181: 0.62 | F181: 0.105 | G181: 214.5 | H181: 88
A182: Park | B182: ML7898B | C182: 0.62 | D182: 1.24 | E182: 0.62 | F182: 0.11 | G182: 190.5 | H182: 91
A183: Park | B183: ML7898B | C183: 1.24 | D183: 2.25 | E183: 1.01 | F183: 0.08 | G183: 167 | H183: 93
A184: Park | B184: ML7901B | C184: 0.47 | D184: 1.01 | E184: 0.54 | F184: 0.14 | G184: 152 | H184: 88
A185: Lincoln | B185: ML7573B | C185: 0 | D185: 1.932 | E185: 1.932 | F185: 0.125 | G185: 209.5 | H185: 87
A186: Sublette | B186: ML8308B | C186: 0 | D186: 0.07 | E186: 0.07 | F186: 0.065 | G186: 281.5 | H186: 95
A187: Washakie | B187: ML8875B | C187: 0 | D187: 0.803 | E187: 0.803 | F187: 0.1 | G187: 119.5 | H187: 79
A188: Washakie | B188: ML8881B | C188: 0 | D188: 1.21 | E188: 1.21 | F188: 0.185 | G188: 164 | H188: 76
A189: Washakie | B189: ML8882B | C189: 0 | D189: 0.1 | E189: 0.1 | F189: 0.05 | G189: 193.5 | H189: 90
A190: Washakie | B190: ML8882B | C190: 0.1 | D190: 0.27 | E190: 0.17 | F190: 0.055 | G190: 178.5 | H190: 87
A191: Washakie | B191: ML8882B | C191: 0.27 | D191: 0.85 | E191: 0.58 | F191: 0.08 | G191: 121 | H191: 82
A192: Park | B192: ML7901B | C192: 1.01 | D192: 1.13 | E192: 0.12 | F192: 0.1 | G192: 267.5 | H192: 76
A193: Washakie | B193: ML8885B | C193: 0 | D193: 0.68 | E193: 0.68 | F193: 0.14 | G193: 157 | H193: 81
A194: Park | B194: ML7901B | C194: 1.13 | D194: 2 | E194: =ABS(C194-D194) -> 0.87 | F194: 0.105 | G194: 131.5 | H194: 80
A195: Park | B195: ML7901B | C195: 2 | D195: 2.05 | E195: 0.05 | F195: 0.1 | G195: 531.5 | H195: 83
A196: Park | B196: ML7901B | C196: 2.05 | D196: 2.52 | E196: 0.47 | F196: 0.1 | G196: 123.5 | H196: 100
A197: Park | B197: ML7901B | C197: 2.52 | D197: 3.03 | E197: 0.51 | F197: 0.055 | G197: 126 | H197: 95
A198: BigHorn | B198: ML5173B | C198: 0 | D198: 5.33 | E198: 5.33 | F198: 0.07 | G198: 133.5 | H198: 70
A199: BigHorn | B199: ML5173B | C199: 5.33 | D199: 5.61 | E199: 0.28 | F199: 0.09 | G199: 217.5 | H199: 68
A200: BigHorn | B200: ML5191B | C200: 0 | D200: 1.18 | E200: 1.18 | F200: 0.21 | G200: 266 | H200: 65
... 972 more rows

Sheet Program
A1: 1 | B1: =A1+1 -> 2 | C1: =B1+1 -> 3 | D1: 4 | E1: =D1+1 -> 5 | F1: =E1+1 -> 6 | G1: =F1+1 -> 7 | H1: =G1+1 -> 8 | I1: =H1+1 -> 9 | J1: =I1+1 -> 10 | K1: =J1+1 -> 11 | L1: =K1+1 -> 12 | M1: =L1+1 -> 13 | N1: =M1+1 -> 14 | O1: 15 | P1: 16 | Q1: 17 | R1: 18
A2: County | B2: Route | C2: From | D2: To | E2: Length | F2: Rut | G2: IRI | H2: PCI | I2: PSI | J2: Rut_Cat | K2: IRI_Cat | L2: PCI_Cat | M2: PSI_Cat | P2: Row Labels | Q2: Sum of Length
A3: Uinta | B3: ML8696B | C3: 2.08 | D3: 2.48 | E3: =ABS(C3-D3) -> 0.4 | F3: 0.105 | G3: 142 | H3: 83 | I3: =5.35*EXP(-0.0058*G3-4*F3^2-3*(1-H3/100)) -> 1.349044496 | J3: 0.3 inches or less | K3: Poor (131 - 170) | L3: 70 - 85 | M3: Less than 2 | P3: 0.3 inches or less | Q3: 1151.129
A4: Uinta | B4: ML8696B | C4: 2.48 | D4: 3.009 | E4: 0.529 | F4: 0.11 | G4: 145.5 | H4: 83 | I4: =5.35*EXP(-0.0058*G4-4*F4^2-3*(1-H4/100)) -> 1.316262868 | J4: 0.3 inches or less | K4: Poor (131 - 170) | L4: 70 - 85 | M4: Less than 2 | P4: More then 0.3 inches | Q4: 34.08
A5: Uinta | B5: ML8696B | C5: 3.009 | D5: 4.97 | E5: 1.961 | F5: 0.095 | G5: 160.5 | H5: 82 | I5: 1.185419311 | J5: 0.3 inches or less | K5: Poor (131 - 170) | L5: 70 - 85 | M5: Less than 2 | P5: Grand Total | Q5: 1185.209
A6: Uinta | B6: ML8696B | C6: 4.97 | D6: 7.69 | E6: 2.72 | F6: 0.065 | G6: 159 | H6: 77 | I6: 1.049167047 | J6: 0.3 inches or less | K6: Poor (131 - 170) | L6: 70 - 85 | M6: Less than 2
A7: Fremont | B7: ML5813B | C7: 0 | D7: 0.866 | E7: 0.866 | F7: 0.115 | G7: 140 | H7: 72 | I7: 0.9725795191 | J7: 0.3 inches or less | K7: Poor (131 - 170) | L7: 70 - 85 | M7: Less than 2
A8: Fremont | B8: ML5814B | C8: 1.66 | D8: 4.77 | E8: 3.11 | F8: 0.145 | G8: 68 | H8: 93 | I8: 2.687460138 | J8: 0.3 inches or less | K8: Excellent (Less than 70) | L8: Greater than 85 | M8: 2.51 - 3.0
A9: Fremont | B9: ML5814B | C9: 4.77 | D9: 6.23 | E9: 1.46 | F9: 0.125 | G9: 61.5 | H9: 96 | I9: 3.120198311 | J9: 0.3 inches or less | K9: Excellent (Less than 70) | L9: Greater than 85 | M9: 3.01 - 3.5
A10: Fremont | B10: ML5814B | C10: 6.23 | D10: 8.34 | E10: 2.11 | F10: 0.1 | G10: 195.5 | H10: 68 | I10: 0.6333048108 | J10: 0.3 inches or less | K10: Very Poor (Greater than 170) | L10: Less than 70 | M10: Less than 2
A11: Sweetwater | B11: ML8515B | C11: 0 | D11: 0.24 | E11: 0.24 | F11: 0.22 | G11: 382 | H11: 79 | I11: 0.256121474 | J11: 0.3 inches or less | K11: Very Poor (Greater than 170) | L11: 70 - 85 | M11: Less than 2 | P11: Row Labels | Q11: Sum of Length
A12: Park | B12: ML7776B | C12: 0 | D12: 1.94 | E12: 1.94 | F12: 0.175 | G12: 92 | H12: 82 | I12: 1.617685722 | J12: 0.3 inches or less | K12: Good (70 - 100) | L12: 70 - 85 | M12: Less than 2 | P12: Excellent (Less than 70) | Q12: 146.687
A13: Park | B13: ML7776B | C13: 1.94 | D13: 2.85 | E13: 0.91 | F13: 0.18 | G13: 110 | H13: 81 | I13: 1.404240463 | J13: 0.3 inches or less | K13: Fair (101 - 130) | L13: 70 - 85 | M13: Less than 2 | P13: Good (70 - 100) | Q13: 101.115
A14: Park | B14: ML7776B | C14: 2.85 | D14: 3.47 | E14: 0.62 | F14: 0.22 | G14: 73 | H14: 84 | I14: 1.786210901 | J14: 0.3 inches or less | K14: Good (70 - 100) | L14: 70 - 85 | M14: Less than 2 | P14: Fair (101 - 130) | Q14: 88.506
A15: Teton | B15: ML2003B | C15: 0 | D15: 3.59 | E15: 3.59 | F15: 0.05 | G15: 68 | H15: 85 | I15: 2.276630641 | J15: 0.3 inches or less | K15: Excellent (Less than 70) | L15: 70 - 85 | M15: 2 - 2.5 | P15: Poor (131 - 170) | Q15: 261.52
A16: Fremont | B16: ML9537B | C16: 0 | D16: 2.91 | E16: 2.91 | F16: 0.135 | G16: 268 | H16: 63 | I16: 0.3463853348 | J16: 0.3 inches or less | K16: Very Poor (Greater than 170) | L16: Less than 70 | M16: Less than 2 | P16: Very Poor (Greater than 170) | Q16: 587.381
A17: Sweetwater | B17: ML1904B | C17: 0 | D17: 1.37 | E17: 1.37 | F17: 0.075 | G17: 96 | H17: 81 | I17: 1.695192936 | J17: 0.3 inches or less | K17: Good (70 - 100) | L17: 70 - 85 | M17: Less than 2 | P17: Grand Total | Q17: 1185.209
A18: Sweetwater | B18: ML9549B | C18: 0 | D18: 0.6 | E18: 0.6 | F18: 0.06 | G18: 158 | H18: 83 | I18: 1.266549864 | J18: 0.3 inches or less | K18: Poor (131 - 170) | L18: 70 - 85 | M18: Less than 2
A19: Sweetwater | B19: ML1919B | C19: 0 | D19: 0.56 | E19: 0.56 | F19: 0.105 | G19: 295 | H19: 82 | I19: 0.5390195493 | J19: 0.3 inches or less | K19: Very Poor (Greater than 170) | L19: 70 - 85 | M19: Less than 2
A20: Sweetwater | B20: ML9544B | C20: 0 | D20: 0.48 | E20: 0.48 | F20: 0.1 | G20: 181 | H20: 86 | I20: 1.182104779 | J20: 0.3 inches or less | K20: Very Poor (Greater than 170) | L20: Greater than 85 | M20: Less than 2 | P20: Row Labels | Q20: Sum of Length
A21: Sweetwater | B21: ML1923B | C21: 0 | D21: 0.459 | E21: 0.459 | F21: 0.1 | G21: 105.5 | H21: 88 | I21: 1.94487277 | J21: 0.3 inches or less | K21: Fair (101 - 130) | L21: Greater than 85 | M21: Less than 2 | P21: Greater than 85 | Q21: 395.97
A22: Fremont | B22: ML9584B | C22: 0 | D22: 0.39 | E22: 0.39 | F22: 0.085 | G22: 256.5 | H22: 78 | I22: 0.6068319139 | J22: 0.3 inches or less | K22: Very Poor (Greater than 170) | L22: 70 - 85 | M22: Less than 2 | P22: 70 - 85 | Q22: 571.386
A23: Lincoln | B23: ML9603B | C23: 0 | D23: 0.28 | E23: 0.28 | F23: 0.255 | G23: 273 | H23: 94 | I23: 0.7072271065 | J23: 0.3 inches or less | K23: Very Poor (Greater than 170) | L23: Greater than 85 | M23: Less than 2 | P23: Less than 70 | Q23: 217.853
A24: BigHorn | B24: ML5304B | C24: 0 | D24: 0.259 | E24: 0.259 | F24: 0.055 | G24: 101 | H24: 86 | I24: 1.933238471 | J24: 0.3 inches or less | K24: Fair (101 - 130) | L24: Greater than 85 | M24: Less than 2 | P24: Grand Total | Q24: 1185.209
A25: Fremont | B25: ML9585B | C25: 0 | D25: 0.209 | E25: 0.209 | F25: 0.105 | G25: 253.5 | H25: 83 | I25: 0.7065908884 | J25: 0.3 inches or less | K25: Very Poor (Greater than 170) | L25: 70 - 85 | M25: Less than 2
A26: Fremont | B26: ML9556B | C26: 0 | D26: 0.121 | E26: 0.121 | F26: 0.045 | G26: 371 | H26: 82 | I26: 0.3595854499 | J26: 0.3 inches or less | K26: Very Poor (Greater than 170) | L26: 70 - 85 | M26: Less than 2
A27: Sweetwater | B27: ML9554B | C27: 0 | D27: 0.07 | E27: 0.07 | F27: 0.065 | G27: 272.5 | H27: 93 | I27: 0.8778290229 | J27: 0.3 inches or less | K27: Very Poor (Greater than 170) | L27: Greater than 85 | M27: Less than 2
A28: Fremont | B28: ML5758B | C28: 0 | D28: 0.06 | E28: 0.06 | F28: 0.035 | G28: 255 | H28: 94 | I28: 1.01328402 | J28: 0.3 inches or less | K28: Very Poor (Greater than 170) | L28: Greater than 85 | M28: Less than 2
A29: Sweetwater | B29: ML9555B | C29: 0 | D29: 0.03 | E29: 0.03 | F29: 0.205 | G29: 269.5 | H29: 88 | I29: 0.6609325815 | J29: 0.3 inches or less | K29: Very Poor (Greater than 170) | L29: Greater than 85 | M29: Less than 2 | P29: Row Labels | Q29: Sum of Length
A30: Sweetwater | B30: ML9553B | C30: 0 | D30: 0.03 | E30: 0.03 | F30: 0.115 | G30: 467 | H30: 79 | I30: 0.1800711121 | J30: 0.3 inches or less | K30: Very Poor (Greater than 170) | L30: 70 - 85 | M30: Less than 2 | P30: Less than 2 | Q30: 979.292
A31: Fremont | B31: ML5758B | C31: 0.06 | D31: 0.139 | E31: 0.079 | F31: 0.025 | G31: 198.5 | H31: 91 | I31: 1.288265269 | J31: 0.3 inches or less | K31: Very Poor (Greater than 170) | L31: Greater than 85 | M31: Less than 2 | P31: 2 - 2.5 | Q31: 106.252
A32: Fremont | B32: ML9556B | C32: 0.121 | D32: 0.23 | E32: 0.109 | F32: 0.03 | G32: 290 | H32: 84 | I32: 0.6135439133 | J32: 0.3 inches or less | K32: Very Poor (Greater than 170) | L32: 70 - 85 | M32: Less than 2 | P32: 2.51 - 3.0 | Q32: 45.47
A33: Sweetwater | B33: ML1904B | C33: 1.37 | D33: 4.638 | E33: 3.268 | F33: 0.065 | G33: 56 | H33: 83 | I33: 2.282785849 | J33: 0.3 inches or less | K33: Excellent (Less than 70) | L33: 70 - 85 | M33: 2 - 2.5 | P33: 3.01 - 3.5 | Q33: 35.696
A34: Teton | B34: ML19240B | C34: 97.327 | D34: 97.757 | E34: 0.43 | F34: 0.06 | G34: 229.5 | H34: 91 | I34: 1.063533187 | J34: 0.3 inches or less | K34: Very Poor (Greater than 170) | L34: Greater than 85 | M34: Less than 2 | P34: Greater than 3.5 | Q34: 18.499
A35: Teton | B35: ML19240B | C35: 97.757 | D35: 98.454 | E35: 0.697 | F35: 0.065 | G35: 162 | H35: 92 | I35: 1.617038777 | J35: 0.3 inches or less | K35: Poor (131 - 170) | L35: Greater than 85 | M35: Less than 2 | P35: Grand Total | Q35: 1185.209
A36: Fremont | B36: ML5738B | C36: 100 | D36: 100.34 | E36: 0.34 | F36: 0.215 | G36: 180.5 | H36: 82 | I36: 0.9096426589 | J36: 0.3 inches or less | K36: Very Poor (Greater than 170) | L36: 70 - 85 | M36: Less than 2
A37: Sublette | B37: ML25723B | C37: 100.254 | D37: 100.547 | E37: 0.293 | F37: 0.1 | G37: 206 | H37: 88 | I37: 1.085777761 | J37: 0.3 inches or less | K37: Very Poor (Greater than 170) | L37: Greater than 85 | M37: Less than 2
A38: BigHorn | B38: ML10442B | C38: 100.281 | D38: 101.002 | E38: 0.721 | F38: 0.19 | G38: 285.5 | H38: 67 | I38: 0.3285049282 | J38: 0.3 inches or less | K38: Very Poor (Greater than 170) | L38: Less than 70 | M38: Less than 2
A39: Park | B39: ML7776B | C39: 3.47 | D39: 4.13 | E39: 0.66 | F39: 0.175 | G39: 85 | H39: 81 | I39: 1.634924394 | J39: 0.3 inches or less | K39: Good (70 - 100) | L39: 70 - 85 | M39: Less than 2
A40: Park | B40: ML7776B | C40: 4.13 | D40: 5.151 | E40: 1.021 | F40: 0.125 | G40: 161.5 | H40: 85 | I40: 1.255955404 | J40: 0.3 inches or less | K40: Poor (131 - 170) | L40: 70 - 85 | M40: Less than 2
A41: Park | B41: ML7777B | C41: 0 | D41: 0.13 | E41: 0.13 | F41: 0.32 | G41: 275.5 | H41: 86 | I41: 0.47217602 | J41: More then 0.3 inches | K41: Very Poor (Greater than 170) | L41: Greater than 85 | M41: Less than 2
A42: Park | B42: ML7783B | C42: 0 | D42: 0.217 | E42: 0.217 | F42: 0.255 | G42: 148.5 | H42: 97 | I42: 1.59312351 | J42: 0.3 inches or less | K42: Poor (131 - 170) | L42: Greater than 85 | M42: Less than 2
A43: Park | B43: ML7785B | C43: 0 | D43: 1.521 | E43: 1.521 | F43: 0.065 | G43: 196.5 | H43: 81 | I43: 0.9517018851 | J43: 0.3 inches or less | K43: Very Poor (Greater than 170) | L43: 70 - 85 | M43: Less than 2
A44: Park | B44: ML7790B | C44: 0 | D44: 1.88 | E44: 1.88 | F44: 0.205 | G44: 199.5 | H44: 84 | I44: 0.8797623726 | J44: 0.3 inches or less | K44: Very Poor (Greater than 170) | L44: 70 - 85 | M44: Less than 2
A45: Park | B45: ML7790B | C45: 1.88 | D45: 2.45 | E45: 0.57 | F45: 0.17 | G45: 162.5 | H45: 93 | I45: 1.505306544 | J45: 0.3 inches or less | K45: Poor (131 - 170) | L45: Greater than 85 | M45: Less than 2
A46: Park | B46: ML7790B | C46: 2.45 | D46: 3.63 | E46: 1.18 | F46: 0.16 | G46: 209 | H46: 87 | I46: 0.9728713368 | J46: 0.3 inches or less | K46: Very Poor (Greater than 170) | L46: Greater than 85 | M46: Less than 2
A47: Park | B47: ML7790B | C47: 3.63 | D47: 4.63 | E47: 1 | F47: 0.195 | G47: 175 | H47: 94 | I47: 1.390963345 | J47: 0.3 inches or less | K47: Very Poor (Greater than 170) | L47: Greater than 85 | M47: Less than 2
A48: Park | B48: ML7790B | C48: 4.63 | D48: 7.28 | E48: 2.65 | F48: 0.155 | G48: 181 | H48: 87 | I48: 1.151650995 | J48: 0.3 inches or less | K48: Very Poor (Greater than 170) | L48: Greater than 85 | M48: Less than 2
A49: Park | B49: ML7790B | C49: 7.28 | D49: 7.539 | E49: 0.259 | F49: 0.13 | G49: 187.5 | H49: 91 | I49: 1.286591613 | J49: 0.3 inches or less | K49: Very Poor (Greater than 170) | L49: Greater than 85 | M49: Less than 2
A50: Park | B50: ML7790B | C50: 7.539 | D50: 8.1 | E50: 0.561 | F50: 0.135 | G50: 160.5 | H50: 91 | I50: 1.496750704 | J50: 0.3 inches or less | K50: Poor (131 - 170) | L50: Greater than 85 | M50: Less than 2
A51: Park | B51: ML7790B | C51: 8.1 | D51: 8.23 | E51: 0.13 | F51: 0.11 | G51: 279.5 | H51: 86 | I51: 0.6620571224 | J51: 0.3 inches or less | K51: Very Poor (Greater than 170) | L51: Greater than 85 | M51: Less than 2
A52: Park | B52: ML7791B | C52: 0 | D52: 0.9 | E52: 0.9 | F52: 0.135 | G52: 229 | H52: 88 | I52: 0.9194280941 | J52: 0.3 inches or less | K52: Very Poor (Greater than 170) | L52: Greater than 85 | M52: Less than 2
A53: Park | B53: ML7794B | C53: 0 | D53: 0.129 | E53: 0.129 | F53: 0.115 | G53: 434.5 | H53: 84 | I53: 0.2526112738 | J53: 0.3 inches or less | K53: Very Poor (Greater than 170) | L53: 70 - 85 | M53: Less than 2
A54: Park | B54: ML7796B | C54: 0 | D54: 0.6 | E54: 0.6 | F54: 0.185 | G54: 216 | H54: 94 | I54: 1.113375688 | J54: 0.3 inches or less | K54: Very Poor (Greater than 170) | L54: Greater than 85 | M54: Less than 2
A55: Park | B55: ML7798B | C55: 0.76 | D55: 2.24 | E55: 1.48 | F55: 0.075 | G55: 187 | H55: 80 | I55: 0.9704421961 | J55: 0.3 inches or less | K55: Very Poor (Greater than 170) | L55: 70 - 85 | M55: Less than 2
A56: Park | B56: ML7800B | C56: 0 | D56: 0.95 | E56: 0.95 | F56: 0.055 | G56: 199 | H56: 93 | I56: 1.350934481 | J56: 0.3 inches or less | K56: Very Poor (Greater than 170) | L56: Greater than 85 | M56: Less than 2
A57: Park | B57: ML7802B | C57: 0 | D57: 0.9 | E57: 0.9 | F57: 0.065 | G57: 227 | H57: 76 | I57: 0.6863253867 | J57: 0.3 inches or less | K57: Very Poor (Greater than 170) | L57: 70 - 85 | M57: Less than 2
A58: Park | B58: ML7805B | C58: 0.92 | D58: 1.21 | E58: 0.29 | F58: 0.08 | G58: 207.5 | H58: 85 | I58: 0.9979985665 | J58: 0.3 inches or less | K58: Very Poor (Greater than 170) | L58: 70 - 85 | M58: Less than 2
A59: Park | B59: ML7805B | C59: 1.21 | D59: 1.5 | E59: 0.29 | F59: 0.085 | G59: 141.5 | H59: 93 | I59: 1.854280149 | J59: 0.3 inches or less | K59: Poor (131 - 170) | L59: Greater than 85 | M59: Less than 2
A60: Park | B60: ML7806B | C60: 0 | D60: 0.11 | E60: 0.11 | F60: 0.115 | G60: 323 | H60: 87 | I60: 0.5277126119 | J60: 0.3 inches or less | K60: Very Poor (Greater than 170) | L60: Greater than 85 | M60: Less than 2
A61: Park | B61: ML7806B | C61: 0.11 | D61: 1.72 | E61: 1.61 | F61: 0.15 | G61: 208 | H61: 80 | I61: 0.8030779959 | J61: 0.3 inches or less | K61: Very Poor (Greater than 170) | L61: 70 - 85 | M61: Less than 2
A62: Park | B62: ML7807B | C62: 0 | D62: 0.5 | E62: 0.5 | F62: 0.16 | G62: 210 | H62: 88 | I62: 0.9967020113 | J62: 0.3 inches or less | K62: Very Poor (Greater than 170) | L62: Greater than 85 | M62: Less than 2
A63: Park | B63: ML7807B | C63: 0.5 | D63: 0.76 | E63: 0.26 | F63: 0.125 | G63: 208.5 | H63: 91 | I63: 1.14487626 | J63: 0.3 inches or less | K63: Very Poor (Greater than 170) | L63: Greater than 85 | M63: Less than 2
A64: Park | B64: ML7807B | C64: 0.76 | D64: 1.89 | E64: 1.13 | F64: 0.135 | G64: 206 | H64: 83 | I64: 0.9042915685 | J64: 0.3 inches or less | K64: Very Poor (Greater than 170) | L64: 70 - 85 | M64: Less than 2
A65: Park | B65: ML7808B | C65: 0 | D65: 2.94 | E65: 2.94 | F65: 0.14 | G65: 198.5 | H65: 78 | I65: 0.8084766839 | J65: 0.3 inches or less | K65: Very Poor (Greater than 170) | L65: 70 - 85 | M65: Less than 2
A66: Park | B66: ML7809B | C66: 0 | D66: 2.64 | E66: 2.64 | F66: 0.12 | G66: 193.5 | H66: 81 | I66: 0.9297835712 | J66: 0.3 inches or less | K66: Very Poor (Greater than 170) | L66: 70 - 85 | M66: Less than 2
A67: Park | B67: ML7810B | C67: 0 | D67: 1.28 | E67: =ABS(C67-D67) -> 1.28 | F67: 0.135 | G67: 182.5 | H67: 79 | I67: 0.919152307 | J67: 0.3 inches or less | K67: Very Poor (Greater than 170) | L67: 70 - 85 | M67: Less than 2
A68: Park | B68: ML7811B | C68: 0 | D68: 2.88 | E68: 2.88 | F68: 0.14 | G68: 207.5 | H68: 79 | I68: =5.35*EXP(-0.0058*G68-4*F68^2-3*(1-H68/100)) -> 0.7907262602 | J68: 0.3 inches or less | K68: Very Poor (Greater than 170) | L68: 70 - 85 | M68: Less than 2
A69: Park | B69: ML7811B | C69: 2.88 | D69: 10.45 | E69: 7.57 | F69: 0.22 | G69: 205 | H69: 73 | I69: 0.5971998652 | J69: 0.3 inches or less | K69: Very Poor (Greater than 170) | L69: 70 - 85 | M69: Less than 2
A70: Park | B70: ML7811B | C70: 10.45 | D70: 14.64 | E70: 4.19 | F70: 0.105 | G70: 249 | H70: 80 | I70: 0.6628520679 | J70: 0.3 inches or less | K70: Very Poor (Greater than 170) | L70: 70 - 85 | M70: Less than 2
A71: Park | B71: ML7812B | C71: 0 | D71: 0.58 | E71: 0.58 | F71: 0.14 | G71: 172 | H71: 82 | I71: 1.063001554 | J71: 0.3 inches or less | K71: Very Poor (Greater than 170) | L71: 70 - 85 | M71: Less than 2
A72: Park | B72: ML7813B | C72: 0 | D72: 1.53 | E72: 1.53 | F72: 0.205 | G72: 194 | H72: 82 | I72: 0.8553851539 | J72: 0.3 inches or less | K72: Very Poor (Greater than 170) | L72: 70 - 85 | M72: Less than 2
A73: Washakie | B73: ML8878B | C73: 0 | D73: 0.49 | E73: 0.49 | F73: 0.075 | G73: 141.5 | H73: 87 | I73: 1.55876924 | J73: 0.3 inches or less | K73: Poor (131 - 170) | L73: Greater than 85 | M73: Less than 2
A74: Washakie | B74: ML8878B | C74: 0.49 | D74: 1 | E74: 0.51 | F74: 0.08 | G74: 163 | H74: 83 | I74: 1.21664438 | J74: 0.3 inches or less | K74: Poor (131 - 170) | L74: 70 - 85 | M74: Less than 2
A75: Park | B75: ML7813B | C75: 1.53 | D75: 1.68 | E75: 0.15 | F75: 0.095 | G75: 189.5 | H75: 92 | I75: 1.352421326 | J75: 0.3 inches or less | K75: Very Poor (Greater than 170) | L75: Greater than 85 | M75: Less than 2
A76: Park | B76: ML7816B | C76: 0 | D76: 0.261 | E76: 0.261 | F76: 0.285 | G76: 291.5 | H76: 88 | I76: 0.4973290303 | J76: 0.3 inches or less | K76: Very Poor (Greater than 170) | L76: Greater than 85 | M76: Less than 2
A77: Park | B77: ML7816B | C77: 0.261 | D77: 0.96 | E77: 0.699 | F77: 0.28 | G77: 245.5 | H77: 88 | I77: 0.6567817949 | J77: 0.3 inches or less | K77: Very Poor (Greater than 170) | L77: Greater than 85 | M77: Less than 2
A78: Park | B78: ML7818B | C78: 0 | D78: 2.72 | E78: 2.72 | F78: 0.22 | G78: 119 | H78: 79 | I78: 1.177385805 | J78: 0.3 inches or less | K78: Fair (101 - 130) | L78: 70 - 85 | M78: Less than 2
A79: Park | B79: ML7818B | C79: 2.72 | D79: 9.33 | E79: 6.61 | F79: 0.07 | G79: 134.5 | H79: 74 | I79: 1.102297415 | J79: 0.3 inches or less | K79: Poor (131 - 170) | L79: 70 - 85 | M79: Less than 2
A80: Park | B80: ML7818B | C80: 9.33 | D80: 10.1 | E80: 0.77 | F80: 0.11 | G80: 121.5 | H80: 81 | I80: 1.424750287 | J80: 0.3 inches or less | K80: Fair (101 - 130) | L80: 70 - 85 | M80: Less than 2
A81: Park | B81: ML7818B | C81: 10.1 | D81: 16.96 | E81: 6.86 | F81: 0.155 | G81: 161 | H81: 71 | I81: 0.8002721361 | J81: 0.3 inches or less | K81: Poor (131 - 170) | L81: 70 - 85 | M81: Less than 2
A82: Park | B82: ML7818B | C82: 16.96 | D82: 17.82 | E82: 0.86 | F82: 0.2 | G82: 126.5 | H82: 77 | I82: 1.097897032 | J82: 0.3 inches or less | K82: Fair (101 - 130) | L82: 70 - 85 | M82: Less than 2
A83: Park | B83: ML7819B | C83: 0 | D83: 0.06 | E83: 0.06 | F83: 0.13 | G83: 621.5 | H83: 88 | I83: 0.09487420345 | J83: 0.3 inches or less | K83: Very Poor (Greater than 170) | L83: Greater than 85 | M83: Less than 2
A84: Park | B84: ML7825B | C84: 0 | D84: 4.88 | E84: 4.88 | F84: 0.115 | G84: 195.5 | H84: 79 | I84: 0.8696160913 | J84: 0.3 inches or less | K84: Very Poor (Greater than 170) | L84: 70 - 85 | M84: Less than 2
A85: Park | B85: ML7826B | C85: 0 | D85: 0.27 | E85: 0.27 | F85: 0.205 | G85: 219.5 | H85: 79 | I85: 0.6742843053 | J85: 0.3 inches or less | K85: Very Poor (Greater than 170) | L85: 70 - 85 | M85: Less than 2
A86: Park | B86: ML7827B | C86: 0 | D86: 0.21 | E86: 0.21 | F86: 0.095 | G86: 213.5 | H86: 85 | I86: 0.9537979341 | J86: 0.3 inches or less | K86: Very Poor (Greater than 170) | L86: 70 - 85 | M86: Less than 2
A87: Park | B87: ML7828B | C87: 0 | D87: 0.06 | E87: 0.06 | F87: 0.09 | G87: 285.5 | H87: 87 | I87: 0.6695138419 | J87: 0.3 inches or less | K87: Very Poor (Greater than 170) | L87: Greater than 85 | M87: Less than 2
A88: Park | B88: ML7838B | C88: 0 | D88: 0.33 | E88: 0.33 | F88: 0.13 | G88: 210.5 | H88: 92 | I88: 1.160204823 | J88: 0.3 inches or less | K88: Very Poor (Greater than 170) | L88: Greater than 85 | M88: Less than 2
A89: Sweetwater | B89: ML8390B | C89: 0 | D89: 1.74 | E89: 1.74 | F89: 0.08 | G89: 80.5 | H89: 85 | I89: 2.084640797 | J89: 0.3 inches or less | K89: Good (70 - 100) | L89: 70 - 85 | M89: 2 - 2.5
A90: Sweetwater | B90: ML8390B | C90: 1.74 | D90: 1.921 | E90: 0.181 | F90: 0.15 | G90: 105.5 | H90: 82 | I90: 1.545266768 | J90: 0.3 inches or less | K90: Fair (101 - 130) | L90: 70 - 85 | M90: Less than 2
A91: Sweetwater | B91: ML8390B | C91: 1.921 | D91: 2.56 | E91: 0.639 | F91: 0.11 | G91: 50 | H91: 92 | I91: 3.000252827 | J91: 0.3 inches or less | K91: Excellent (Less than 70) | L91: Greater than 85 | M91: 3.01 - 3.5
A92: Park | B92: ML7838B | C92: 0.33 | D92: 0.57 | E92: 0.24 | F92: 0.225 | G92: 189.5 | H92: 97 | I92: 1.3304225 | J92: 0.3 inches or less | K92: Very Poor (Greater than 170) | L92: Greater than 85 | M92: Less than 2
A93: Park | B93: ML7840B | C93: 0 | D93: 1.47 | E93: 1.47 | F93: 0.12 | G93: 213 | H93: 90 | I93: 1.087733921 | J93: 0.3 inches or less | K93: Very Poor (Greater than 170) | L93: Greater than 85 | M93: Less than 2
A94: Park | B94: ML7840B | C94: 1.47 | D94: 2.5 | E94: 1.03 | F94: 0.145 | G94: 178.5 | H94: 88 | I94: 1.218592569 | J94: 0.3 inches or less | K94: Very Poor (Greater than 170) | L94: Greater than 85 | M94: Less than 2
A95: Park | B95: ML7840B | C95: 2.5 | D95: 3.476 | E95: 0.976 | F95: 0.135 | G95: 142.5 | H95: 95 | I95: 1.873290595 | J95: 0.3 inches or less | K95: Poor (131 - 170) | L95: Greater than 85 | M95: Less than 2
A96: Park | B96: ML7841B | C96: 0 | D96: 0.41 | E96: 0.41 | F96: 0.145 | G96: 298.5 | H96: 91 | I96: 0.6647771288 | J96: 0.3 inches or less | K96: Very Poor (Greater than 170) | L96: Greater than 85 | M96: Less than 2
A97: Park | B97: ML7847B | C97: 0 | D97: 1 | E97: 1 | F97: 0.13 | G97: 155 | H97: 90 | I97: 1.507566198 | J97: 0.3 inches or less | K97: Poor (131 - 170) | L97: Greater than 85 | M97: Less than 2
A98: Park | B98: ML7849B | C98: 0 | D98: 0.931 | E98: 0.931 | F98: 0.135 | G98: 120.5 | H98: 86 | I98: 1.624656747 | J98: 0.3 inches or less | K98: Fair (101 - 130) | L98: Greater than 85 | M98: Less than 2
A99: Lincoln | B99: ML7503B | C99: 0 | D99: 0.44 | E99: 0.44 | F99: 0.08 | G99: 246 | H99: 94 | I99: 1.045710502 | J99: 0.3 inches or less | K99: Very Poor (Greater than 170) | L99: Greater than 85 | M99: Less than 2
A100: Lincoln | B100: ML7503B | C100: 0.44 | D100: 0.53 | E100: 0.09 | F100: 0.075 | G100: 224.5 | H100: 100 | I100: 1.422614763 | J100: 0.3 inches or less | K100: Very Poor (Greater than 170) | L100: Greater than 85 | M100: Less than 2
A101: Lincoln | B101: ML7503B | C101: 0.53 | D101: 1.09 | E101: 0.56 | F101: 0.09 | G101: 340.5 | H101: 80 | I101: 0.3944734509 | J101: 0.3 inches or less | K101: Very Poor (Greater than 170) | L101: 70 - 85 | M101: Less than 2
A102: Lincoln | B102: ML7534B | C102: 0 | D102: 0.14 | E102: 0.14 | F102: 0.05 | G102: 251.5 | H102: 95 | I102: 1.060135321 | J102: 0.3 inches or less | K102: Very Poor (Greater than 170) | L102: Greater than 85 | M102: Less than 2
A103: Lincoln | B103: ML7534B | C103: 0.14 | D103: 0.43 | E103: 0.29 | F103: 0.11 | G103: 245 | H103: 91 | I103: 0.9395977328 | J103: 0.3 inches or less | K103: Very Poor (Greater than 170) | L103: Greater than 85 | M103: Less than 2
A104: Park | B104: ML7851B | C104: 0 | D104: 1.4 | E104: 1.4 | F104: 0.135 | G104: 170 | H104: 89 | I104: 1.334019494 | J104: 0.3 inches or less | K104: Poor (131 - 170) | L104: Greater than 85 | M104: Less than 2
A105: Park | B105: ML7851B | C105: 1.4 | D105: 2.7 | E105: 1.3 | F105: 0.115 | G105: 174.5 | H105: 86 | I105: 1.211787523 | J105: 0.3 inches or less | K105: Very Poor (Greater than 170) | L105: Greater than 85 | M105: Less than 2
A106: Sweetwater | B106: ML9567B | C106: 0 | D106: 0.07 | E106: 0.07 | F106: 0.11 | G106: 293 | H106: 90 | I106: 0.690248612 | J106: 0.3 inches or less | K106: Very Poor (Greater than 170) | L106: Greater than 85 | M106: Less than 2
A107: Park | B107: ML7851B | C107: 2.7 | D107: 4.11 | E107: 1.41 | F107: 0.12 | G107: 187.5 | H107: 89 | I107: 1.223843799 | J107: 0.3 inches or less | K107: Very Poor (Greater than 170) | L107: Greater than 85 | M107: Less than 2
A108: Park | B108: ML7851B | C108: 4.11 | D108: 4.16 | E108: 0.05 | F108: 0.07 | G108: 223.5 | H108: 95 | I108: 1.235155114 | J108: 0.3 inches or less | K108: Very Poor (Greater than 170) | L108: Greater than 85 | M108: Less than 2
A109: Park | B109: ML7852B | C109: 0 | D109: 0.68 | E109: 0.68 | F109: 0.14 | G109: 181.5 | H109: 86 | I109: 1.134278267 | J109: 0.3 inches or less | K109: Very Poor (Greater than 170) | L109: Greater than 85 | M109: Less than 2
A110: Park | B110: ML7852B | C110: 0.68 | D110: 1.19 | E110: 0.51 | F110: 0.13 | G110: 179 | H110: 91 | I110: 1.351610117 | J110: 0.3 inches or less | K110: Very Poor (Greater than 170) | L110: Greater than 85 | M110: Less than 2
A111: Park | B111: ML7852B | C111: 1.19 | D111: 1.41 | E111: 0.22 | F111: 0.25 | G111: 213 | H111: 88 | I111: 0.8450973602 | J111: 0.3 inches or less | K111: Very Poor (Greater than 170) | L111: Greater than 85 | M111: Less than 2
A112: Park | B112: ML7852B | C112: 1.41 | D112: 2.16 | E112: 0.75 | F112: 0.21 | G112: 204.5 | H112: 88 | I112: 0.9556118729 | J112: 0.3 inches or less | K112: Very Poor (Greater than 170) | L112: Greater than 85 | M112: Less than 2
A113: Park | B113: ML7852B | C113: 2.16 | D113: 3.55 | E113: 1.39 | F113: 0.11 | G113: 170.5 | H113: 86 | I113: 1.245823256 | J113: 0.3 inches or less | K113: Very Poor (Greater than 170) | L113: Greater than 85 | M113: Less than 2
A114: Park | B114: ML7852B | C114: 3.55 | D114: 3.901 | E114: 0.351 | F114: 0.08 | G114: 163 | H114: 86 | I114: 1.331220993 | J114: 0.3 inches or less | K114: Poor (131 - 170) | L114: Greater than 85 | M114: Less than 2
A115: Park | B115: ML7852B | C115: 3.901 | D115: 4.46 | E115: 0.559 | F115: 0.135 | G115: 165 | H115: 88 | I115: 1.332686142 | J115: 0.3 inches or less | K115: Poor (131 - 170) | L115: Greater than 85 | M115: Less than 2
A116: Park | B116: ML7852B | C116: 4.46 | D116: 4.88 | E116: 0.42 | F116: 0.14 | G116: 188.5 | H116: 93 | I116: 1.343659096 | J116: 0.3 inches or less | K116: Very Poor (Greater than 170) | L116: Greater than 85 | M116: Less than 2
A117: Park | B117: ML7852B | C117: 4.88 | D117: 9.95 | E117: 5.07 | F117: 0.115 | G117: 188.5 | H117: 74 | I117: 0.7794993385 | J117: 0.3 inches or less | K117: Very Poor (Greater than 170) | L117: 70 - 85 | M117: Less than 2
A118: Park | B118: ML7852B | C118: 9.95 | D118: 10.95 | E118: 1 | F118: 0.11 | G118: 204 | H118: 74 | I118: 0.7156933835 | J118: 0.3 inches or less | K118: Very Poor (Greater than 170) | L118: 70 - 85 | M118: Less than 2
A119: Park | B119: ML7852B | C119: 10.95 | D119: 18.67 | E119: 7.72 | F119: 0.125 | G119: 191.5 | H119: 75 | I119: 0.7818413478 | J119: 0.3 inches or less | K119: Very Poor (Greater than 170) | L119: 70 - 85 | M119: Less than 2
A120: Park | B120: ML7852B | C120: 18.67 | D120: 20.41 | E120: 1.74 | F120: 0.215 | G120: 209.5 | H120: 78 | I120: 0.6818787389 | J120: 0.3 inches or less | K120: Very Poor (Greater than 170) | L120: 70 - 85 | M120: Less than 2
A121: Park | B121: ML7852B | C121: 20.41 | D121: 22.09 | E121: 1.68 | F121: 0.15 | G121: 204.5 | H121: 81 | I121: 0.844505999 | J121: 0.3 inches or less | K121: Very Poor (Greater than 170) | L121: 70 - 85 | M121: Less than 2
A122: Park | B122: ML7852B | C122: 22.09 | D122: 23.64 | E122: 1.55 | F122: 0.09 | G122: 183.5 | H122: 86 | I122: 1.173976332 | J122: 0.3 inches or less | K122: Very Poor (Greater than 170) | L122: Greater than 85 | M122: Less than 2
A123: Park | B123: ML7853B | C123: 1.71 | D123: 2.44 | E123: 0.73 | F123: 0.085 | G123: 170.5 | H123: 80 | I123: 1.061089872 | J123: 0.3 inches or less | K123: Very Poor (Greater than 170) | L123: 70 - 85 | M123: Less than 2
A124: Park | B124: ML7853B | C124: 2.44 | D124: 2.56 | E124: 0.12 | F124: 0.165 | G124: 270.5 | H124: 67 | I124: 0.3713154014 | J124: 0.3 inches or less | K124: Very Poor (Greater than 170) | L124: Less than 70 | M124: Less than 2
A125: Park | B125: ML7854B | C125: 0 | D125: 0.37 | E125: 0.37 | F125: 0.18 | G125: 187.5 | H125: 91 | I125: 1.209245439 | J125: 0.3 inches or less | K125: Very Poor (Greater than 170) | L125: Greater than 85 | M125: Less than 2
A126: Park | B126: ML7860B | C126: 0 | D126: 2.01 | E126: 2.01 | F126: 0.12 | G126: 169.5 | H126: 90 | I126: 1.399894058 | J126: 0.3 inches or less | K126: Poor (131 - 170) | L126: Greater than 85 | M126: Less than 2
A127: Park | B127: ML7866B | C127: 0 | D127: 2.06 | E127: 2.06 | F127: 0.085 | G127: 90.5 | H127: 66 | I127: 1.108820193 | J127: 0.3 inches or less | K127: Good (70 - 100) | L127: Less than 70 | M127: Less than 2
A128: Park | B128: ML7866B | C128: 2.06 | D128: 3.46 | E128: 1.4 | F128: 0.06 | G128: 78.5 | H128: 78 | I128: 1.728746468 | J128: 0.3 inches or less | K128: Good (70 - 100) | L128: 70 - 85 | M128: Less than 2
A129: Park | B129: ML7866B | C129: 3.46 | D129: 4.06 | E129: 0.6 | F129: 0.11 | G129: 84.5 | H129: 86 | I129: 2.051551961 | J129: 0.3 inches or less | K129: Good (70 - 100) | L129: Greater than 85 | M129: 2 - 2.5
A130: Park | B130: ML7866B | C130: 4.06 | D130: 4.57 | E130: 0.51 | F130: 0.14 | G130: 88.5 | H130: 85 | I130: 1.887770609 | J130: 0.3 inches or less | K130: Good (70 - 100) | L130: 70 - 85 | M130: Less than 2
A131: Park | B131: ML7866B | C131: 4.57 | D131: 5.25 | E131: =ABS(C131-D131) -> 0.68 | F131: 0.145 | G131: 89.5 | H131: 82 | I131: 1.705565216 | J131: 0.3 inches or less | K131: Good (70 - 100) | L131: 70 - 85 | M131: Less than 2
A132: Park | B132: ML7866B | C132: 5.25 | D132: 8.1 | E132: 2.85 | F132: 0.13 | G132: 94.5 | H132: 80 | I132: =5.35*EXP(-0.0058*G132-4*F132^2-3*(1-H132/100)) -> 1.586287786 | J132: 0.3 inches or less | K132: Good (70 - 100) | L132: 70 - 85 | M132: Less than 2
A133: Park | B133: ML7867B | C133: 0 | D133: 0.28 | E133: 0.28 | F133: 0.1 | G133: 203.5 | H133: 98 | I133: 1.487053374 | J133: 0.3 inches or less | K133: Very Poor (Greater than 170) | L133: Greater than 85 | M133: Less than 2
A134: Park | B134: ML7867B | C134: 0.28 | D134: 0.58 | E134: 0.3 | F134: 0.14 | G134: 155.5 | H134: 89 | I134: 1.443104305 | J134: 0.3 inches or less | K134: Poor (131 - 170) | L134: Greater than 85 | M134: Less than 2
A135: Park | B135: ML7867B | C135: 0.58 | D135: 1.089 | E135: 0.509 | F135: 0.25 | G135: 156 | H135: 92 | I135: 1.326171952 | J135: 0.3 inches or less | K135: Poor (131 - 170) | L135: Greater than 85 | M135: Less than 2
A136: Park | B136: ML7867B | C136: 1.089 | D136: 1.8 | E136: 0.711 | F136: 0.34 | G136: 117 | H136: 89 | I136: 1.228871859 | J136: More then 0.3 inches | K136: Fair (101 - 130) | L136: Greater than 85 | M136: Less than 2
A137: Park | B137: ML7867B | C137: 1.8 | D137: 2.09 | E137: 0.29 | F137: 0.3 | G137: 182.5 | H137: 91 | I137: 0.9886613337 | J137: More then 0.3 inches | K137: Very Poor (Greater than 170) | L137: Greater than 85 | M137: Less than 2
A138: Park | B138: ML7867B | C138: 2.09 | D138: 2.86 | E138: 0.77 | F138: 0.295 | G138: 196 | H138: 87 | I138: 0.8205311216 | J138: 0.3 inches or less | K138: Very Poor (Greater than 170) | L138: Greater than 85 | M138: Less than 2
A139: Park | B139: ML7867B | C139: 2.86 | D139: 3.149 | E139: 0.289 | F139: 0.245 | G139: 169 | H139: 89 | I139: 1.135186053 | J139: 0.3 inches or less | K139: Poor (131 - 170) | L139: Greater than 85 | M139: Less than 2
A140: Park | B140: ML7867B | C140: 3.149 | D140: 3.79 | E140: 0.641 | F140: 0.27 | G140: 168 | H140: 82 | I140: 0.8790588442 | J140: 0.3 inches or less | K140: Poor (131 - 170) | L140: 70 - 85 | M140: Less than 2
A141: Park | B141: ML7867B | C141: 3.79 | D141: 4.26 | E141: 0.47 | F141: 0.225 | G141: 154.5 | H141: 88 | I141: 1.244204738 | J141: 0.3 inches or less | K141: Poor (131 - 170) | L141: Greater than 85 | M141: Less than 2
A142: Park | B142: ML7867B | C142: 4.26 | D142: 4.55 | E142: 0.29 | F142: 0.485 | G142: 198.5 | H142: 99 | I142: 0.6407579932 | J142: More then 0.3 inches | K142: Very Poor (Greater than 170) | L142: Greater than 85 | M142: Less than 2
A143: Park | B143: ML7867B | C143: 4.55 | D143: 6.31 | E143: 1.76 | F143: 0.155 | G143: 193 | H143: 87 | I143: 1.074221874 | J143: 0.3 inches or less | K143: Very Poor (Greater than 170) | L143: Greater than 85 | M143: Less than 2
A144: Park | B144: ML7867B | C144: 6.31 | D144: 7 | E144: 0.69 | F144: 0.05 | G144: 214.5 | H144: 83 | I144: 0.9166739431 | J144: 0.3 inches or less | K144: Very Poor (Greater than 170) | L144: 70 - 85 | M144: Less than 2
A145: Park | B145: ML7867B | C145: 7 | D145: 8.31 | E145: 1.31 | F145: 0.07 | G145: 180.5 | H145: 81 | I145: 1.041431866 | J145: 0.3 inches or less | K145: Very Poor (Greater than 170) | L145: 70 - 85 | M145: Less than 2
A146: Park | B146: ML7867B | C146: 8.31 | D146: 8.86 | E146: 0.55 | F146: 0.1 | G146: 127 | H146: 93 | I146: 1.99470578 | J146: 0.3 inches or less | K146: Fair (101 - 130) | L146: Greater than 85 | M146: Less than 2
A147: Park | B147: ML7867B | C147: 8.86 | D147: 8.89 | E147: 0.03 | F147: 0.095 | G147: 311 | H147: 95 | I147: 0.7313936618 | J147: 0.3 inches or less | K147: Very Poor (Greater than 170) | L147: Greater than 85 | M147: Less than 2
A148: Park | B148: ML7869B | C148: 2.75 | D148: 2.81 | E148: 0.06 | F148: 0.065 | G148: 361.5 | H148: 94 | I148: 0.5398286854 | J148: 0.3 inches or less | K148: Very Poor (Greater than 170) | L148: Greater than 85 | M148: Less than 2
A149: Park | B149: ML7877B | C149: 0.08 | D149: 0.134 | E149: 0.054 | F149: 0.22 | G149: 215.5 | H149: 98 | I149: 1.189575548 | J149: 0.3 inches or less | K149: Very Poor (Greater than 170) | L149: Greater than 85 | M149: Less than 2
A150: Park | B150: ML7878B | C150: 0 | D150: 0.19 | E150: 0.19 | F150: 0.12 | G150: 176 | H150: 94 | I150: 1.519979064 | J150: 0.3 inches or less | K150: Very Poor (Greater than 170) | L150: Greater than 85 | M150: Less than 2
A151: Park | B151: ML7879B | C151: 0 | D151: 0.15 | E151: 0.15 | F151: 0.12 | G151: 216 | H151: 95 | I151: 1.241967184 | J151: 0.3 inches or less | K151: Very Poor (Greater than 170) | L151: Greater than 85 | M151: Less than 2
A152: Park | B152: ML7880B | C152: 0 | D152: 0.024 | E152: 0.024 | F152: 0.06 | G152: 445.5 | H152: 100 | I152: 0.3980397362 | J152: 0.3 inches or less | K152: Very Poor (Greater than 170) | L152: Greater than 85 | M152: Less than 2
A153: Park | B153: ML7882B | C153: 0 | D153: 0.91 | E153: 0.91 | F153: 0.085 | G153: 177 | H153: 86 | I153: 1.22335436 | J153: 0.3 inches or less | K153: Very Poor (Greater than 170) | L153: Greater than 85 | M153: Less than 2
A154: Park | B154: ML7882B | C154: 0.91 | D154: 1.05 | E154: 0.14 | F154: 0.09 | G154: 174 | H154: 83 | I154: 1.13371127 | J154: 0.3 inches or less | K154: Very Poor (Greater than 170) | L154: 70 - 85 | M154: Less than 2
A155: Park | B155: ML7882B | C155: 1.05 | D155: 1.28 | E155: 0.23 | F155: 0.12 | G155: 234 | H155: 84 | I155: 0.8043639492 | J155: 0.3 inches or less | K155: Very Poor (Greater than 170) | L155: 70 - 85 | M155: Less than 2
A156: Park | B156: ML7882B | C156: 1.28 | D156: 1.7 | E156: 0.42 | F156: 0.095 | G156: 168 | H156: 92 | I156: 1.532034454 | J156: 0.3 inches or less | K156: Poor (131 - 170) | L156: Greater than 85 | M156: Less than 2
A157: Park | B157: ML7886B | C157: 0 | D157: 0.19 | E157: 0.19 | F157: 0.105 | G157: 141 | H157: 90 | I157: 1.673967506 | J157: 0.3 inches or less | K157: Poor (131 - 170) | L157: Greater than 85 | M157: Less than 2
A158: Lincoln | B158: ML7559B | C158: 0 | D158: 0.26 | E158: 0.26 | F158: 0.11 | G158: 182.5 | H158: 94 | I158: 1.477271139 | J158: 0.3 inches or less | K158: Very Poor (Greater than 170) | L158: Greater than 85 | M158: Less than 2
A159: Lincoln | B159: ML7559B | C159: 0.259 | D159: 0.56 | E159: 0.301 | F159: 0.1 | G159: 77.5 | H159: 99 | I159: 3.182275672 | J159: 0.3 inches or less | K159: Good (70 - 100) | L159: Greater than 85 | M159: 3.01 - 3.5
A160: Lincoln | B160: ML7559B | C160: 0.56 | D160: 2.12 | E160: 1.56 | F160: 0.085 | G160: 72.5 | H160: 83 | I160: 2.049706395 | J160: 0.3 inches or less | K160: Good (70 - 100) | L160: 70 - 85 | M160: 2 - 2.5
A161: Lincoln | B161: ML7559B | C161: 2.12 | D161: 3.2 | E161: 1.08 | F161: 0.08 | G161: 71 | H161: 99 | I161: 3.352467229 | J161: 0.3 inches or less | K161: Good (70 - 100) | L161: Greater than 85 | M161: 3.01 - 3.5
A162: Park | B162: ML7890B | C162: 0 | D162: 0.5 | E162: 0.5 | F162: 0.13 | G162: 165.5 | H162: 83 | I162: 1.149809827 | J162: 0.3 inches or less | K162: Poor (131 - 170) | L162: 70 - 85 | M162: Less than 2
A163: Park | B163: ML7892B | C163: 0 | D163: 0.17 | E163: 0.17 | F163: 0.105 | G163: 157 | H163: 88 | I163: 1.436768595 | J163: 0.3 inches or less | K163: Poor (131 - 170) | L163: Greater than 85 | M163: Less than 2
A164: Lincoln | B164: ML7487B | C164: 0 | D164: 0.08 | E164: 0.08 | F164: 0.1 | G164: 441.5 | H164: 90 | I164: 0.2941682374 | J164: 0.3 inches or less | K164: Very Poor (Greater than 170) | L164: Greater than 85 | M164: Less than 2
A165: Lincoln | B165: ML7487B | C165: 0.08 | D165: 0.21 | E165: 0.13 | F165: 0.09 | G165: 228 | H165: 99 | I165: 1.339500202 | J165: 0.3 inches or less | K165: Very Poor (Greater than 170) | L165: Greater than 85 | M165: Less than 2
A166: Lincoln | B166: ML7487B | C166: 0.21 | D166: 0.54 | E166: 0.33 | F166: 0.085 | G166: 272.5 | H166: 94 | I166: 0.8937730107 | J166: 0.3 inches or less | K166: Very Poor (Greater than 170) | L166: Greater than 85 | M166: Less than 2
A167: Lincoln | B167: ML7487B | C167: 0.54 | D167: 0.82 | E167: 0.28 | F167: 0.085 | G167: 265.5 | H167: 92 | I167: 0.8766009221 | J167: 0.3 inches or less | K167: Very Poor (Greater than 170) | L167: Greater than 85 | M167: Less than 2
A168: Lincoln | B168: ML7487B | C168: 0.82 | D168: 1.07 | E168: 0.25 | F168: 0.075 | G168: 321 | H168: 90 | I168: 0.6021772516 | J168: 0.3 inches or less | K168: Very Poor (Greater than 170) | L168: Greater than 85 | M168: Less than 2
A169: Park | B169: ML7892B | C169: 0.17 | D169: 0.31 | E169: 0.14 | F169: 0.085 | G169: 343.5 | H169: 90 | I169: 0.525133145 | J169: 0.3 inches or less | K169: Very Poor (Greater than 170) | L169: Greater than 85 | M169: Less than 2
A170: Park | B170: ML7892B | C170: 0.31 | D170: 0.96 | E170: 0.65 | F170: 0.085 | G170: 171 | H170: 85 | I170: 1.229240576 | J170: 0.3 inches or less | K170: Very Poor (Greater than 170) | L170: 70 - 85 | M170: Less than 2
A171: Park | B171: ML7892B | C171: 0.96 | D171: 1.47 | E171: 0.51 | F171: 0.095 | G171: 142.5 | H171: 93 | I171: 1.830330517 | J171: 0.3 inches or less | K171: Poor (131 - 170) | L171: Greater than 85 | M171: Less than 2
A172: Park | B172: ML7892B | C172: 1.47 | D172: 1.97 | E172: 0.5 | F172: 0.07 | G172: 162.5 | H172: 82 | I172: 1.19124212 | J172: 0.3 inches or less | K172: Poor (131 - 170) | L172: 70 - 85 | M172: Less than 2
A173: Lincoln | B173: ML7471B | C173: 0 | D173: 0.92 | E173: 0.92 | F173: 0.1 | G173: 104 | H173: 91 | I173: 2.146624398 | J173: 0.3 inches or less | K173: Fair (101 - 130) | L173: Greater than 85 | M173: 2 - 2.5
A174: Lincoln | B174: ML7471B | C174: 0.92 | D174: 2.03 | E174: 1.11 | F174: 0.065 | G174: 106 | H174: 97 | I174: 2.599701318 | J174: 0.3 inches or less | K174: Fair (101 - 130) | L174: Greater than 85 | M174: 2.51 - 3.0
A175: Lincoln | B175: ML7572B | C175: 0 | D175: 0.019 | E175: 0.019 | F175: 0.21 | G175: 1056.5 | H175: 83 | I175: 0.005875268963 | J175: 0.3 inches or less | K175: Very Poor (Greater than 170) | L175: 70 - 85 | M175: Less than 2
A176: Park | B176: ML7893B | C176: 1.01 | D176: 1.5 | E176: 0.49 | F176: 0.12 | G176: 147 | H176: 93 | I176: 1.745247817 | J176: 0.3 inches or less | K176: Poor (131 - 170) | L176: Greater than 85 | M176: Less than 2
A177: Park | B177: ML7894B | C177: 0 | D177: 0.521 | E177: 0.521 | F177: 0.12 | G177: 138.5 | H177: 92 | I177: 1.779258245 | J177: 0.3 inches or less | K177: Poor (131 - 170) | L177: Greater than 85 | M177: Less than 2
A178: Park | B178: ML7897B | C178: 1.47 | D178: 1.9 | E178: 0.43 | F178: 0.15 | G178: 228 | H178: 82 | I178: 0.7593416743 | J178: 0.3 inches or less | K178: Very Poor (Greater than 170) | L178: 70 - 85 | M178: Less than 2
A179: Park | B179: ML7897B | C179: 1.9 | D179: 2.41 | E179: 0.51 | F179: 0.135 | G179: 158.5 | H179: 87 | I179: 1.342987434 | J179: 0.3 inches or less | K179: Poor (131 - 170) | L179: Greater than 85 | M179: Less than 2
A180: Park | B180: ML7897B | C180: 2.41 | D180: 2.91 | E180: 0.5 | F180: 0.12 | G180: 164 | H180: 85 | I180: 1.243955922 | J180: 0.3 inches or less | K180: Poor (131 - 170) | L180: 70 - 85 | M180: Less than 2
A181: Park | B181: ML7897B | C181: 2.91 | D181: 3.92 | E181: 1.01 | F181: 0.09 | G181: 186 | H181: 80 | I181: 0.9664715285 | J181: 0.3 inches or less | K181: Very Poor (Greater than 170) | L181: 70 - 85 | M181: Less than 2
A182: Park | B182: ML7898B | C182: 0 | D182: 0.62 | E182: 0.62 | F182: 0.105 | G182: 214.5 | H182: 88 | I182: 1.029318117 | J182: 0.3 inches or less | K182: Very Poor (Greater than 170) | L182: Greater than 85 | M182: Less than 2
A183: Park | B183: ML7898B | C183: 0.62 | D183: 1.24 | E183: 0.62 | F183: 0.11 | G183: 190.5 | H183: 91 | I183: 1.288909563 | J183: 0.3 inches or less | K183: Very Poor (Greater than 170) | L183: Greater than 85 | M183: Less than 2
A184: Park | B184: ML7898B | C184: 1.24 | D184: 2.25 | E184: 1.01 | F184: 0.08 | G184: 167 | H184: 93 | I184: 1.604635392 | J184: 0.3 inches or less | K184: Poor (131 - 170) | L184: Greater than 85 | M184: Less than 2
A185: Park | B185: ML7901B | C185: 0.47 | D185: 1.01 | E185: 0.54 | F185: 0.14 | G185: 152 | H185: 88 | I185: 1.429173866 | J185: 0.3 inches or less | K185: Poor (131 - 170) | L185: Greater than 85 | M185: Less than 2
A186: Lincoln | B186: ML7573B | C186: 0 | D186: 1.932 | E186: 1.932 | F186: 0.125 | G186: 209.5 | H186: 87 | I186: 1.009541796 | J186: 0.3 inches or less | K186: Very Poor (Greater than 170) | L186: Greater than 85 | M186: Less than 2
A187: Sublette | B187: ML8308B | C187: 0 | D187: 0.07 | E187: 0.07 | F187: 0.065 | G187: 281.5 | H187: 95 | I187: 0.8847028624 | J187: 0.3 inches or less | K187: Very Poor (Greater than 170) | L187: Greater than 85 | M187: Less than 2
A188: Washakie | B188: ML8875B | C188: 0 | D188: 0.803 | E188: 0.803 | F188: 0.1 | G188: 119.5 | H188: 79 | I188: 1.368885029 | J188: 0.3 inches or less | K188: Fair (101 - 130) | L188: 70 - 85 | M188: Less than 2
A189: Washakie | B189: ML8881B | C189: 0 | D189: 1.21 | E189: 1.21 | F189: 0.185 | G189: 164 | H189: 76 | I189: 0.8772147576 | J189: 0.3 inches or less | K189: Poor (131 - 170) | L189: 70 - 85 | M189: Less than 2
A190: Washakie | B190: ML8882B | C190: 0 | D190: 0.1 | E190: 0.1 | F190: 0.05 | G190: 193.5 | H190: 90 | I190: 1.277361422 | J190: 0.3 inches or less | K190: Very Poor (Greater than 170) | L190: Greater than 85 | M190: Less than 2
A191: Washakie | B191: ML8882B | C191: 0.1 | D191: 0.27 | E191: 0.17 | F191: 0.055 | G191: 178.5 | H191: 87 | I191: 1.270863462 | J191: 0.3 inches or less | K191: Very Poor (Greater than 170) | L191: Greater than 85 | M191: Less than 2
A192: Washakie | B192: ML8882B | C192: 0.27 | D192: 0.85 | E192: 0.58 | F192: 0.08 | G192: 121 | H192: 82 | I192: 1.506360627 | J192: 0.3 inches or less | K192: Fair (101 - 130) | L192: 70 - 85 | M192: Less than 2
A193: Park | B193: ML7901B | C193: 1.01 | D193: 1.13 | E193: 0.12 | F193: 0.1 | G193: 267.5 | H193: 76 | I193: 0.5302517214 | J193: 0.3 inches or less | K193: Very Poor (Greater than 170) | L193: 70 - 85 | M193: Less than 2
A194: Washakie | B194: ML8885B | C194: 0 | D194: 0.68 | E194: 0.68 | F194: 0.14 | G194: 157 | H194: 81 | I194: 1.125352771 | J194: 0.3 inches or less | K194: Poor (131 - 170) | L194: 70 - 85 | M194: Less than 2
A195: Park | B195: ML7901B | C195: 1.13 | D195: 2 | E195: =ABS(C195-D195) -> 0.87 | F195: 0.105 | G195: 131.5 | H195: 80 | I195: 1.310352993 | J195: 0.3 inches or less | K195: Poor (131 - 170) | L195: 70 - 85 | M195: Less than 2
A196: Park | B196: ML7901B | C196: 2 | D196: 2.05 | E196: 0.05 | F196: 0.1 | G196: 531.5 | H196: 83 | I196: =5.35*EXP(-0.0058*G196-4*F196^2-3*(1-H196/100)) -> 0.1414790769 | J196: 0.3 inches or less | K196: Very Poor (Greater than 170) | L196: 70 - 85 | M196: Less than 2
A197: Park | B197: ML7901B | C197: 2.05 | D197: 2.52 | E197: 0.47 | F197: 0.1 | G197: 123.5 | H197: 100 | I197: 2.511289989 | J197: 0.3 inches or less | K197: Fair (101 - 130) | L197: Greater than 85 | M197: 2.51 - 3.0
A198: Park | B198: ML7901B | C198: 2.52 | D198: 3.03 | E198: 0.51 | F198: 0.055 | G198: 126 | H198: 95 | I198: 2.190646183 | J198: 0.3 inches or less | K198: Fair (101 - 130) | L198: Greater than 85 | M198: 2 - 2.5
A199: BigHorn | B199: ML5173B | C199: 0 | D199: 5.33 | E199: 5.33 | F199: 0.07 | G199: 133.5 | H199: 70 | I199: 0.9833369512 | J199: 0.3 inches or less | K199: Poor (131 - 170) | L199: 70 - 85 | M199: Less than 2
A200: BigHorn | B200: ML5173B | C200: 5.33 | D200: 5.61 | E200: 0.28 | F200: 0.09 | G200: 217.5 | H200: 68 | I200: 0.5616909794 | J200: 0.3 inches or less | K200: Very Poor (Greater than 170) | L200: Less than 70 | M200: Less than 2
... 973 more rows
